fUSD/lending_fUSD_20241003
["ID","MTS","AMOUNT","RATE_DAILY","PERIOD"]
[339794610,1727987550961,-1135.51,0.00036164,120]
[339794611,1727987550970,-500.0,0.00036164,120]
[339794613,1727987550980,-26307.75,0.00036164,120]
[339794614,1727987550990,-1359.32,0.00036164,120]
[339794615,1727987550999,-920.13,0.00036164,120]
[339794617,1727987551010,-2373.28,0.00036164,120]
[339794618,1727987551020,-723.9,0.00036164,120]
[339794619,1727987551030,-500.0,0.00036164,120]
[339794621,1727987551040,-683.05,0.00036164,120]
[339794622,1727987551049,-500.0,0.00036164,120]
[339794623,1727987551059,-1328.33,0.00036164,120]
[339794625,1727987551068,-1718.99,0.00036164,120]
[339794626,1727987551078,-2515.59,0.00036164,120]
[339794627,1727987551087,-500.0,0.00036164,120]
[339794629,1727987551097,-953.41,0.00036164,120]
[339794630,1727987551106,-876.22,0.00036164,120]
[339794632,1727987551116,-2264.01,0.00036164,120]
[339794633,1727987551127,-1281.35,0.00036164,120]
[339794634,1727987551137,-2588.02,0.00036164,120]
[339794636,1727987551147,-1057.1,0.00036164,120]
[339794637,1727987551156,-1543.66,0.00036164,120]
[339794638,1727987551165,-567.28,0.00036164,120]
[339794640,1727987551175,-1173.73,0.00036164,120]
[339794641,1727987551185,-622.45,0.00036164,120]
[339794642,1727987551195,-831.03,0.00036164,120]
[339794644,1727987551204,-574.46,0.00036164,120]
[339794645,1727987551214,-999.57,0.00036164,120]
[339794646,1727987551224,-605.72,0.00036164,120]
[339794648,1727987551233,-486.44828901,0.00036164,120]
[339794649,1727987551243,-656.14,0.00036164,24]
[339794651,1727987551253,-1059.55,0.00036164,120]
[339794652,1727987551262,-1114.36,0.00036164,120]
[339794653,1727987551272,-500.0,0.00036164,120]
[339794655,1727987551281,-2557.98,0.00036164,120]
[339794656,1727987551290,-2619.08,0.00036164,120]
[339794657,1727987551300,-985.85,0.00036164,120]
[339794659,1727987551310,-2196.8,0.00036164,120]
[339794660,1727987551319,-1368.57,0.00036164,120]
[339794661,1727987551329,-534.46,0.00036164,120]
[339794663,1727987551338,-623.45,0.00036164,120]
[339794664,1727987551348,-1760.97,0.00036164,120]
[339794665,1727987551357,-4833.89,0.00036164,120]
[339794667,1727987551367,-1036.03,0.00036164,120]
[339794668,1727987551377,-613.95,0.00036164,120]
[339794670,1727987551387,-1295.57,0.00036164,120]
[339794671,1727987551396,-1437.23,0.00036164,120]
[339794672,1727987551406,-1100.59,0.00036164,120]
[339794674,1727987551415,-581.64,0.00036164,120]
[339794675,1727987551424,-500.0,0.00036164,120]
[339794676,1727987551434,-1584.05,0.00036164,120]
[339794678,1727987551445,-500.0,0.00036164,120]
[339794679,1727987551455,-1739.53,0.00036164,120]
[339794680,1727987551465,-780.59,0.00036164,120]
[339794682,1727987551474,-500.0,0.00036164,120]
[339794683,1727987551483,-10179.37,0.00036164,120]
[339794685,1727987551493,-1002.66,0.00036164,120]
[339794686,1727987551503,-567.89,0.00036164,120]
[339794687,1727987551512,-504.47,0.00036164,120]
[339794689,1727987551522,-859.91,0.00036164,120]
[339794690,1727987551532,-8270.07,0.00036164,21]
[339794691,1727987551542,-669.41,0.00036164,120]
[339794693,1727987551551,-4586.08,0.00036164,120]
[339794694,1727987551560,-2304.02,0.00036164,120]
[339794695,1727987551570,-631.12,0.00036164,120]
[339794697,1727987551579,-1138.44,0.00036164,120]
[339794698,1727987551589,-609.29047251,0.00036164,120]
[339794699,1727987551598,-811.67,0.00036164,120]
[339794701,1727987551607,-536.29,0.00036164,120]
[339794702,1727987551617,-994.04,0.00036164,120]
[339794703,1727987551625,-2110.0,0.00036198,2]
[339794705,1727987551635,-200.03834684,0.00036208,2]
[339794706,1727987551644,-5000.0,0.000363,2]
[339794707,1727987551654,-2251.5019805,0.00036343,7]
[339794709,1727987551664,-3007.50576663,0.00036343,7]
[339794710,1727987551674,-2899.87242423,0.00036343,7]
[339794712,1727987551684,-200.03834684,0.00036343,2]
[339794713,1727987551694,-500.0,0.00036438,120]
[339794714,1727987551704,-1830.04,0.00036438,120]
[339794716,1727987551714,-198.96995052,0.00036438,120]
[339794717,1727987551724,-1465.14,0.00036438,120]
[339794718,1727987551735,-731.74,0.00036438,120]
[339794720,1727987551745,-500.0,0.00036438,120]
[339794721,1727987551755,-500.0,0.00036438,120]
[339794722,1727987551764,-1375.31,0.00036438,120]
[339794724,1727987551774,-668.57,0.00036438,120]
[339794725,1727987551785,-500.0,0.00036438,120]
[339794726,1727987551795,-1062.68,0.00036438,120]
[339794728,1727987551804,-1108.65,0.00036438,120]
[339794729,1727987551814,-1917.75,0.00036438,120]
[339794731,1727987551823,-1239.66,0.00036438,120]
[339794732,1727987551835,-749.5,0.00036438,120]
[339794733,1727987551844,-1219.3,0.00036438,120]
[339794735,1727987551854,-1706.35,0.00036438,120]
[339794736,1727987551871,-627.44581283,0.00036438,120]
[339794737,1727987551881,-1816.28,0.00036438,120]
[339794739,1727987551891,-608.59,0.00036438,120]
[339794740,1727987551901,-688.2,0.00036438,120]
[339794742,1727987551911,-818.32,0.00036438,120]
[339794743,1727987551922,-2173.75,0.00036438,120]
[339794744,1727987551931,-721.06,0.00036438,120]
[339794746,1727987551942,-2649.5,0.00036438,120]
[339794747,1727987551954,-500.0,0.00036438,120]
[339794748,1727987551965,-500.0,0.00036438,120]
[339794749,1727987551975,-500.0,0.00036438,120]
[339794750,1727987551985,-952.32,0.00036438,120]
[339794751,1727987551994,-500.0,0.00036438,15]
[339794752,1727987552004,-508.75,0.00036438,120]
[339794753,1727987552014,-500.0,0.00036438,120]
[339794754,1727987552023,-2782.16,0.00036438,120]
[339794755,1727987552034,-500.0,0.00036438,120]
[339794756,1727987552043,-500.0,0.00036438,120]
[339794757,1727987552052,-799.66,0.00036438,120]
[339794758,1727987552062,-500.0,0.00036438,120]
[339794759,1727987552071,-528.54,0.00036438,120]
[339794760,1727987552081,-500.0,0.00036438,120]
[339794761,1727987552090,-1116.48,0.00036438,120]
[339794762,1727987552100,-500.0,0.00036438,120]
[339794763,1727987552110,-500.0,0.00036438,120]
[339794764,1727987552120,-500.0,0.00036438,120]
[339794765,1727987552130,-667.6,0.00036438,120]
[339794767,1727987552140,-516.86,0.00036438,120]
[339794768,1727987552150,-577.36,0.00036438,120]
[339794769,1727987552159,-500.0,0.00036438,120]
[339794771,1727987552169,-2275.0,0.00036438,120]
[339794772,1727987552179,-1181.76,0.00036438,120]
[339794774,1727987552189,-1059.01,0.00036438,120]
[339794775,1727987552198,-500.0,0.00036438,120]
[339794776,1727987552210,-500.0,0.00036438,120]
[339794778,1727987552220,-678.32,0.00036438,120]
[339794779,1727987552229,-908.96,0.00036438,120]
[339794780,1727987552239,-500.0,0.00036438,120]
[339794782,1727987552249,-806.47,0.00036438,120]
[339794783,1727987552259,-1850.2,0.00036438,120]
[339794785,1727987552268,-500.0,0.00036438,120]
[339794786,1727987552278,-500.0,0.00036438,120]
[339794787,1727987552288,-500.0,0.00036438,120]
[339794789,1727987552298,-532.65,0.00036438,120]
[339794790,1727987552309,-500.0,0.00036438,120]
[339794791,1727987552319,-500.0,0.00036438,120]
[339794793,1727987552329,-500.0,0.00036438,120]
[339794794,1727987552339,-951.98,0.00036438,120]
[339794796,1727987552349,-3113.1,0.00036438,120]
[339794797,1727987552359,-952.18,0.00036438,120]
[339794798,1727987552369,-1578.27,0.00036438,120]
[339794800,1727987552379,-799.85,0.00036438,120]
[339794801,1727987552389,-500.0,0.00036438,120]
[339794802,1727987552399,-708.6,0.00036438,120]
[339794804,1727987552409,-584.82,0.00036438,120]
[339794805,1727987552419,-560.83,0.00036438,120]
[339794807,1727987552429,-610.78,0.00036438,120]
[339794808,1727987552438,-1249.01,0.00036438,120]
[339794809,1727987552448,-523.07483282,0.00036438,120]
[339794811,1727987552466,-500.0,0.00036438,120]
[339794812,1727987552476,-500.0,0.00036438,120]
[339794814,1727987552486,-1225.26,0.00036438,120]
[339794815,1727987552496,-911.79,0.00036438,120]
[339794816,1727987552506,-817.82,0.00036438,120]
[339794818,1727987552516,-517.59,0.00036438,120]
[339794819,1727987552526,-1292.49,0.00036438,7]
[339794820,1727987552535,-500.0,0.00036438,120]
[339794822,1727987552545,-762.72,0.00036438,120]
[339794823,1727987552555,-1396.71,0.00036438,120]
[339794824,1727987552564,-1184.87,0.00036438,120]
[339794826,1727987552574,-1701.57,0.00036438,120]
[339794827,1727987552584,-714.2,0.00036438,120]
[339794829,1727987552594,-494.3430668,0.00036438,120]
[339794830,1727987552604,-1713.42,0.00036438,120]
[339794831,1727987552614,-676.51,0.00036438,120]
[339794833,1727987552625,-543.4,0.00036438,120]
[339794834,1727987552635,-615.69,0.00036438,120]
[339794835,1727987552645,-500.0,0.00036438,120]
[339794837,1727987552656,-675.57,0.00036438,120]
[339794838,1727987552666,-822.0,0.00036438,120]
[339794839,1727987552675,-500.0,0.00036438,120]
[339794841,1727987552686,-781.4,0.00036438,120]
[339794842,1727987552696,-747.69,0.00036438,120]
[339794844,1727987552707,-500.0,0.00036438,120]
[339794845,1727987552717,-911.34,0.00036438,120]
[339794846,1727987552726,-617.77,0.00036438,120]
[339794848,1727987552736,-500.0,0.00036438,120]
[339794849,1727987552745,-500.0,0.00036438,120]
[339794850,1727987552756,-1099.61,0.00036438,120]
[339794852,1727987552766,-500.0,0.00036438,120]
[339794853,1727987552776,-500.0,0.00036438,120]
[339794854,1727987552786,-1245.73,0.00036438,120]
[339794856,1727987552796,-605.0,0.00036438,120]
[339794857,1727987552807,-570.35,0.00036438,120]
[339794859,1727987552817,-614.52,0.00036438,120]
[339794860,1727987552827,-806.75,0.00036438,120]
[339794861,1727987552837,-761.4,0.00036438,120]
[339794863,1727987552847,-500.0,0.00036438,120]
[339794864,1727987552859,-1016.56,0.00036438,120]
[339794865,1727987552870,-500.0,0.00036438,120]
[339794867,1727987552880,-908.19,0.00036438,120]
[339794868,1727987552891,-500.0,0.00036438,120]
[339794870,1727987552902,-650.02,0.00036438,120]
[339794871,1727987552911,-2907.54,0.00036438,120]
[339794872,1727987552922,-1955.84,0.00036438,120]
[339794874,1727987552932,-666.23,0.00036438,120]
[339794875,1727987552944,-619.0,0.00036438,120]
[339794876,1727987552956,-1476.07,0.00036438,120]
[339794878,1727987552975,-500.0,0.00036438,120]
[339794879,1727987552985,-200.0,0.00036438,7]
[339794881,1727987552995,-664.13,0.00036438,120]
[339794882,1727987553006,-580.92,0.00036438,120]
[339794883,1727987553015,-559.23,0.00036438,120]
[339794885,1727987553026,-682.12,0.00036438,120]
[339794886,1727987553036,-662.07,0.00036438,120]
[339794888,1727987553047,-1017.64,0.00036438,120]
[339794889,1727987553058,-1843.32,0.00036438,120]
[339794890,1727987553068,-929.85,0.00036438,120]
[339794892,1727987553078,-903.96,0.00036438,120]
[339794893,1727987553088,-1244.9,0.00036438,120]
[339794894,1727987553099,-2059.5,0.00036438,120]
[339794896,1727987553110,-1208.85,0.00036438,120]
[339794897,1727987553120,-1392.18,0.00036438,120]
[339794898,1727987553131,-1754.22,0.00036438,120]
[339794900,1727987553141,-3096.26,0.00036438,120]
[339794901,1727987553152,-838.34,0.00036438,120]
[339794903,1727987553162,-500.0,0.00036438,120]
[339794904,1727987553173,-767.37,0.00036438,120]
[339794905,1727987553183,-1262.93,0.00036438,120]
[339794907,1727987553194,-871.88,0.00036438,120]
[339794908,1727987553206,-900.49,0.00036438,120]
[339794909,1727987553217,-546.33,0.00036438,120]
[339794911,1727987553228,-1915.72,0.00036438,120]
[339794912,1727987553239,-500.0,0.00036438,120]
[339794914,1727987553250,-542.05,0.00036438,120]
[339794915,1727987553261,-1246.58,0.00036438,120]
[339794916,1727987553272,-755.2,0.00036438,120]
[339794918,1727987553284,-515.39,0.00036438,120]
[339794919,1727987553294,-1449.61,0.00036438,120]
[339794920,1727987553304,-615.97,0.00036438,120]
[339794922,1727987553315,-500.0,0.00036438,120]
[339794923,1727987553326,-828.98,0.00036438,120]
[339794924,1727987553336,-522.48,0.00036438,120]
[339794926,1727987553347,-500.0,0.00036438,120]
[339794927,1727987553358,-769.93,0.00036438,120]
[339794929,1727987553368,-1535.42,0.00036438,120]
[339794930,1727987553380,-692.01,0.00036438,120]
[339794931,1727987553390,-500.0,0.00036438,120]
[339794933,1727987553401,-500.0,0.00036438,120]
[339794934,1727987553411,-500.0,0.00036438,120]
[339794935,1727987553421,-617.57,0.00036438,120]
[339794937,1727987553432,-1322.47,0.00036438,120]
[339794938,1727987553442,-3041.51,0.00036438,120]
[339794939,1727987553458,-678.3,0.00036438,120]
[339794941,1727987553469,-685.28,0.00036438,120]
[339794942,1727987553480,-1088.33,0.00036438,120]
[339794943,1727987553490,-809.97,0.00036438,120]
[339794945,1727987553500,-617.35,0.00036438,120]
[339794946,1727987553510,-500.0,0.00036438,120]
[339794948,1727987553521,-504.49,0.00036438,120]
[339794949,1727987553531,-1000.0,0.00036438,120]
[339794950,1727987553542,-2582.55,0.00036438,14]
[339794952,1727987553552,-821.22,0.00036438,120]
[339794953,1727987553563,-500.0,0.00036438,120]
[339794954,1727987553574,-1192.92,0.00036438,120]
[339794956,1727987553585,-752.83,0.00036438,120]
[339794957,1727987553595,-500.0,0.00036438,120]
[339794959,1727987553606,-2036.76,0.00036438,2]
[339794960,1727987553616,-1822.29,0.00036438,120]
[339794961,1727987553626,-500.0,0.00036438,120]
[339794963,1727987553637,-696.33,0.00036438,120]
[339794964,1727987553647,-500.0,0.00036438,120]
[339794965,1727987553658,-1595.23,0.00036438,120]
[339794967,1727987553668,-1676.96,0.00036438,120]
[339794968,1727987553678,-500.0,0.00036438,120]
[339794970,1727987553687,-1430.65,0.00036438,120]
[339794971,1727987553697,-500.0,0.00036438,120]
[339794972,1727987553710,-500.0,0.00036438,120]
[339794974,1727987553720,-1022.58,0.00036438,120]
[339794975,1727987553730,-534.34,0.00036438,120]
[339794976,1727987553740,-572.51,0.00036438,120]
[339794978,1727987553750,-743.36,0.00036438,120]
[339794979,1727987553759,-722.75,0.00036438,120]
[339794980,1727987553770,-2933.87,0.00036438,120]
[339794982,1727987553780,-891.75,0.00036438,120]
[339794983,1727987553791,-734.12,0.00036438,120]
[339794985,1727987553802,-326.97,0.00036438,120]
[339794986,1727987553812,-500.0,0.00036438,120]
[339794987,1727987553823,-830.44,0.00036438,120]
[339794989,1727987553833,-2736.92,0.00036438,120]
[339794990,1727987553843,-2840.63,0.00036438,120]
[339794991,1727987553854,-1668.6,0.00036438,120]
[339794993,1727987553868,-963.2,0.00036438,120]
[339794994,1727987553877,-3064.64,0.00036438,120]
[339794996,1727987553888,-895.53,0.00036438,120]
[339794997,1727987553899,-500.0,0.00036438,120]
[339795006,1727987554130,-603.25,0.00036438,120]
[339795008,1727987554148,-893.66,0.00036438,120]
[339795009,1727987554158,-1265.22,0.00036438,120]
[339795010,1727987554168,-648.93,0.00036438,120]
[339795012,1727987554178,-702.69,0.00036438,120]
[339795013,1727987554188,-912.75,0.00036438,120]
[339795014,1727987554197,-625.95,0.00036438,120]
[339795016,1727987554207,-500.0,0.00036438,120]
[339795017,1727987554215,-500.0,0.00036438,120]
[339795018,1727987554225,-589.87,0.00036438,120]
[339795020,1727987554236,-904.15,0.00036438,120]
[339795021,1727987554247,-809.38,0.00036438,120]
[339795022,1727987554257,-1583.67,0.00036438,120]
[339795024,1727987554267,-500.0,0.00036438,120]
[339795025,1727987554277,-2849.48,0.00036438,120]
[339795027,1727987554288,-1559.78,0.00036438,120]
[339795028,1727987554298,-526.9,0.00036438,120]
[339795029,1727987554308,-522.66,0.00036438,120]
[339795030,1727987554318,-887.97,0.00036438,120]
[339795032,1727987554329,-608.69,0.00036438,120]
[339795033,1727987554339,-1196.23,0.00036438,120]
[339795034,1727987554349,-1435.23,0.00036438,120]
[339795036,1727987554359,-1891.17,0.00036438,120]
[339795037,1727987554368,-734.62,0.00036438,120]
[339795038,1727987554379,-500.0,0.00036438,5]
[339795040,1727987554389,-1907.44,0.00036438,120]
[339795041,1727987554399,-954.92,0.00036438,30]
[339795042,1727987554408,-760.37,0.00036438,120]
[339795044,1727987554418,-1267.83,0.00036438,120]
[339795045,1727987554428,-500.0,0.00036438,120]
[339795047,1727987554438,-3152.28,0.00036438,120]
[339795048,1727987554448,-2240.67,0.00036438,120]
[339795049,1727987554459,-500.0,0.00036438,120]
[339795051,1727987554469,-692.31,0.00036438,120]
[339795052,1727987554479,-4273.85,0.00036438,2]
[339795053,1727987554489,-500.0,0.00036438,120]
[339795055,1727987554499,-566.42,0.00036438,120]
[339795056,1727987554508,-1375.15,0.00036438,120]
[339795057,1727987554518,-1352.94,0.00036438,120]
[339795059,1727987554529,-2143.59,0.00036438,120]
[339795060,1727987554539,-500.0,0.00036438,120]
[339795061,1727987554550,-500.0,0.00036438,120]
[339795062,1727987554561,-2552.25,0.00036438,120]
[339795063,1727987554571,-807.0,0.00036438,120]
[339795064,1727987554581,-500.0,0.00036438,120]
[339795065,1727987554591,-1929.43,0.00036438,120]
[339795066,1727987554601,-500.0,0.00036438,120]
[339795067,1727987554611,-687.7,0.00036438,120]
[339795068,1727987554621,-500.0,0.00036438,120]
[339795069,1727987554631,-685.66,0.00036438,120]
[339795070,1727987554642,-500.0,0.00036438,120]
[339795071,1727987554652,-500.0,0.00036438,120]
[339795072,1727987554663,-500.0,0.00036438,120]
[339795073,1727987554673,-500.0,0.00036438,120]
[339795074,1727987554683,-1124.73,0.00036438,120]
[339795075,1727987554693,-500.0,0.00036438,120]
[339795076,1727987554704,-1267.04,0.00036438,120]
[339795077,1727987554714,-1073.96,0.00036438,120]
[339795078,1727987554724,-687.49,0.00036438,120]
[339795079,1727987554734,-515.88,0.00036438,120]
[339795080,1727987554744,-924.47,0.00036438,120]
[339795081,1727987554754,-3529.62,0.00036438,120]
[339795082,1727987554763,-500.0,0.00036438,120]
[339795083,1727987554774,-500.0,0.00036438,120]
[339795084,1727987554784,-2122.92,0.00036438,120]
[339795085,1727987554794,-1443.8,0.00036438,120]
[339795086,1727987554804,-583.93,0.00036438,120]
[339795087,1727987554814,-1130.17,0.00036438,120]
[339795088,1727987554824,-598.1,0.00036438,120]
[339795089,1727987554833,-500.0,0.00036438,120]
[339795090,1727987554844,-512.25,0.00036438,120]
[339795091,1727987554855,-739.66,0.00036438,120]
[339795092,1727987554868,-2221.7,0.00036438,120]
[339795093,1727987554879,-347.03222829,0.00036438,120]
[339795094,1727987554889,-753.47,0.00036438,120]
[339795095,1727987554898,-878.47,0.00036438,120]
[339795096,1727987554909,-2105.23,0.00036438,120]
[339795097,1727987554919,-265.32463657,0.00036438,120]
[339795098,1727987554929,-880.23,0.00036438,120]
[339795099,1727987554941,-1101.24,0.00036438,120]
[339795100,1727987554951,-500.0,0.00036438,120]
[339795101,1727987554961,-594.49,0.00036438,120]
[339795102,1727987554971,-500.0,0.00036438,120]
[339795103,1727987554981,-1746.33,0.00036438,120]
[339795104,1727987554990,-983.59,0.00036438,120]
[339795105,1727987555000,-1535.26,0.00036438,120]
[339795106,1727987555010,-3156.06,0.00036438,120]
[339795107,1727987555020,-889.14,0.00036438,120]
[339795108,1727987555029,-754.45,0.00036438,120]
[339795109,1727987555038,-640.32,0.00036438,120]
[339795110,1727987555047,-2375.19,0.00036438,120]
[339795111,1727987555057,-500.0,0.00036438,120]
[339795112,1727987555068,-439.70499869,0.00036438,120]
[339795113,1727987555077,-580.84,0.00036438,120]
[339795114,1727987555086,-652.15,0.00036438,120]
[339795115,1727987555096,-2171.15,0.00036438,120]
[339795116,1727987555106,-970.9,0.00036438,120]
[339795117,1727987555116,-576.98,0.00036438,120]
[339795118,1727987555125,-2322.76,0.00036438,120]
[339795119,1727987555135,-2446.1,0.00036438,120]
[339795120,1727987555145,-500.0,0.00036438,120]
[339795121,1727987555155,-569.39,0.00036438,120]
[339795122,1727987555165,-865.83,0.00036438,120]
[339795123,1727987555174,-500.0,0.00036438,120]
[339795124,1727987555185,-559.14,0.00036438,120]
[339795125,1727987555194,-500.0,0.00036438,120]
[339795126,1727987555204,-526.15,0.00036438,120]
[339795127,1727987555214,-500.0,0.00036438,120]
[339795128,1727987555223,-500.0,0.00036438,120]
[339795129,1727987555233,-1022.47,0.00036438,120]
[339795130,1727987555242,-1404.02,0.00036438,120]
[339795131,1727987555252,-500.0,0.00036438,120]
[339795132,1727987555262,-641.91,0.00036438,120]
[339795133,1727987555273,-926.29,0.00036438,120]
[339795134,1727987555283,-796.9,0.00036438,120]
[339795135,1727987555293,-2021.14,0.00036438,120]
[339795136,1727987555303,-3420.05,0.00036438,120]
[339795137,1727987555313,-500.0,0.00036438,120]
[339795138,1727987555323,-585.28,0.00036438,120]
[339795139,1727987555332,-920.88,0.00036438,120]
[339795140,1727987555343,-1014.09,0.00036438,120]
[339795141,1727987555352,-1372.22,0.00036438,120]
[339795142,1727987555362,-501.73,0.00036438,120]
[339795143,1727987555371,-2342.53,0.00036438,120]
[339795144,1727987555381,-849.67,0.00036438,120]
[339795145,1727987555391,-500.0,0.00036438,120]
[339795146,1727987555400,-503.33,0.00036438,120]
[339795147,1727987555410,-650.32,0.00036438,120]
[339795148,1727987555419,-619.95,0.00036438,120]
[339795149,1727987555430,-4513.04,0.00036438,120]
[339795150,1727987555439,-500.0,0.00036438,120]
[339795151,1727987555449,-697.86,0.00036438,120]
[339795152,1727987555461,-1906.45,0.00036438,120]
[339795153,1727987555471,-500.0,0.00036438,120]
[339795154,1727987555480,-500.0,0.00036438,120]
[339795155,1727987555490,-500.0,0.00036438,120]
[339795156,1727987555500,-1342.8,0.00036438,120]
[339795157,1727987555509,-4469.7,0.00036438,120]
[339795158,1727987555519,-2820.31,0.00036438,120]
[339795159,1727987555528,-1714.59,0.00036438,120]
[339795160,1727987555538,-1567.97,0.00036438,120]
[339795161,1727987555548,-858.96,0.00036438,120]
[339795162,1727987555558,-1071.24,0.00036438,120]
[339795163,1727987555568,-1083.26,0.00036438,120]
[339795164,1727987555577,-1923.73,0.00036438,120]
[339795165,1727987555587,-3953.73,0.00036438,120]
[339795166,1727987555597,-1541.86,0.00036438,120]
[339795167,1727987555608,-646.54,0.00036438,120]
[339795168,1727987555617,-825.35,0.00036438,120]
[339795169,1727987555626,-2326.51,0.00036438,120]
[339795170,1727987555636,-1401.87,0.00036438,120]
[339795171,1727987555646,-8162.3,0.00036438,120]
[339795172,1727987555656,-2202.86,0.00036438,3]
[339795173,1727987555666,-1721.6,0.00036438,120]
[339795174,1727987555675,-1824.09,0.00036438,120]
[339795175,1727987555685,-500.0,0.00036438,120]
[339795176,1727987555694,-797.25,0.00036438,120]
[339795177,1727987555705,-3694.14,0.00036438,120]
[339795178,1727987555719,-648.29,0.00036438,120]
[339795179,1727987555729,-1962.84,0.00036438,120]
[339795180,1727987555739,-770.99,0.00036438,120]
[339795181,1727987555748,-1812.58,0.00036438,120]
[339795182,1727987555758,-1106.97,0.00036438,120]
[339795183,1727987555767,-995.24,0.00036438,120]
[339795184,1727987555776,-1533.42,0.00036438,120]
[339795185,1727987555785,-1245.45,0.00036438,120]
[339795186,1727987555795,-2708.28,0.00036438,120]
[339795187,1727987555805,-919.76,0.00036438,120]
[339795188,1727987555814,-1028.68,0.00036438,120]
[339795189,1727987555823,-500.0,0.00036438,120]
[339795190,1727987555833,-2392.87,0.00036438,120]
[339795191,1727987555842,-500.0,0.00036438,120]
[339795192,1727987555852,-1219.91,0.00036438,120]
[339795193,1727987555865,-500.0,0.00036438,120]
[339795194,1727987555875,-1971.05,0.00036438,120]
[339795195,1727987555884,-967.14,0.00036438,120]
[339795196,1727987555893,-11039.47,0.00036438,120]
[339795197,1727987555903,-1835.01,0.00036438,120]
[339795198,1727987555912,-647.95,0.00036438,120]
[339795199,1727987555921,-1066.51,0.00036438,120]
[339795200,1727987555930,-2065.61,0.00036438,120]
[339795201,1727987555942,-2041.33,0.00036438,120]
[339795202,1727987555953,-500.0,0.00036438,120]
[339795203,1727987555963,-500.0,0.00036438,120]
[339795204,1727987555972,-701.71,0.00036438,120]
[339795205,1727987555982,-512.38,0.00036438,120]
[339795206,1727987555992,-527.76,0.00036438,120]
[339795207,1727987556006,-527.0,0.00036438,120]
[339795208,1727987556016,-1302.4,0.00036438,120]
[339795209,1727987556026,-968.42,0.00036438,120]
[339795210,1727987556036,-1041.18,0.00036438,120]
[339795211,1727987556046,-500.0,0.00036438,120]
[339795212,1727987556056,-2058.43,0.00036438,120]
[339795213,1727987556066,-1510.82,0.00036438,120]
[339795214,1727987556076,-2566.99,0.00036438,120]
[339795215,1727987556086,-1635.85,0.00036438,120]
[339795216,1727987556096,-500.52,0.00036438,120]
[339795217,1727987556106,-1123.06,0.00036438,120]
[339795218,1727987556117,-1766.39,0.00036438,120]
[339795219,1727987556127,-1421.18,0.00036438,120]
[339795220,1727987556136,-2301.76,0.00036438,120]
[339795221,1727987556146,-1093.77,0.00036438,120]
[339795222,1727987556156,-2041.08,0.00036438,120]
[339795223,1727987556166,-1056.72,0.00036438,120]
[339795224,1727987556176,-500.0,0.00036438,120]
[339795225,1727987556186,-575.99,0.00036438,120]
[339795226,1727987556195,-4824.18,0.00036438,120]
[339795227,1727987556205,-2539.88,0.00036438,120]
[339795228,1727987556215,-1031.81,0.00036438,120]
[339795229,1727987556224,-1058.32,0.00036438,120]
[339795230,1727987556234,-500.0,0.00036438,120]